bitfinex/quotes_ETHUSD_20240730
["timestamp","ask_amount","ask_price","bid_price","bid_amount"]
[1722371270619,1.91000143,3271.7,3270.5,2.51944614]
[1722371270787,0.03068347,3270.8,3270.5,2.51944614]
[1722371270969,1.90893106,3271.2,3270.5,3.03069075]
[1722371271169,0.03062768,3270.7,3270.5,2.4583]
[1722371271420,1.90893106,3271.2,3270.5,2.4583]
[1722371271615,0.03085082,3271.1,3270.5,2.4583]
[1722371272312,1.90893106,3270.9,3270.1,9.7583]
[1722371272525,0.63937616,3271.0,3270.1,9.7583]
[1722371272526,1.90893106,3270.7,3270.1,9.7583]
[1722371273013,0.03072382,3270.6,3270.1,9.7583]
[1722371273310,1.90893106,3270.6,3270.1,9.7583]
[1722371273537,1.90893106,3270.5,3270.1,9.7583]
[1722371273669,2.2904,3271.2,3270.1,9.7583]
[1722371273670,1.90893106,3270.7,3270.2,0.47494393]
[1722371273872,3.0,3271.4,3270.2,0.47494393]
[1722371274114,1.90980104,3270.8,3270.2,0.47494393]
[1722371274311,1.90980104,3270.8,3270.2,0.41379155]
[1722371274493,1.90957194,3270.6,3270.1,9.7583]
[1722371274694,1.90957194,3270.6,3270.1,2.4583]
[1722371276020,1.90957194,3270.6,3270.2,0.0611504]
[1722371276227,1.91125933,3270.6,3270.2,0.0611504]
[1722371276521,2.55031386,3270.5,3270.1,2.4583]
[1722371276678,2.55031386,3270.4,3270.1,2.4583]
[1722371276884,0.63906766,3270.3,3270.1,2.4583]
[1722371277078,0.63906766,3270.2,3270.1,2.4583]
[1722371277302,1.91166113,3270.3,3270.1,2.4583]
[1722371277629,0.0300921,3270.2,3270.1,2.4583]
[1722371277825,2.55092747,3270.2,3269.8,3.0]
[1722371277989,1.91166113,3270.3,3269.9,1.27861]
[1722371278331,0.02969404,3270.2,3269.9,1.27861]
[1722371278679,1.91166113,3270.3,3269.9,1.27861]
[1722371279107,0.02969404,3270.2,3269.9,1.27861]
[1722371279313,0.02969404,3270.2,3270.0,0.427861]
[1722371279477,1.91166113,3270.4,3270.0,0.427861]
[1722371279880,0.02974985,3270.3,3270.0,0.427861]
[1722371280211,1.94141098,3270.3,3270.0,0.427861]
[1722371280413,0.02974985,3270.3,3269.8,3.0]
[1722371280725,1.91343677,3270.2,3269.8,3.0]
[1722371280942,1.91343677,3270.3,3269.8,3.0]
[1722371281102,0.02963823,3270.1,3269.9,1.27861]
[1722371281283,0.02969404,3270.2,3269.9,1.27861]
[1722371281485,0.02958241,3270.0,3269.9,1.27861]
[1722371281727,1.91343677,3270.4,3269.9,1.27861]
[1722371281879,0.02958241,3270.0,3269.9,1.27861]
[1722371282086,1.91343677,3270.5,3269.9,1.27861]
[1722371282381,0.02966749,3270.4,3270.1,2.4861]
[1722371282931,0.02966749,3270.4,3269.9,1.27861]
[1722371282932,1.94338234,3270.4,3269.9,1.27861]
[1722371283139,2.55323232,3270.3,3269.9,1.27861]
[1722371283284,1.91371485,3270.3,3269.9,1.27861]
[1722371283525,0.02946795,3270.2,3269.9,1.27861]
[1722371283842,13.5657594,3271.3,3270.0,0.676471]
[1722371283843,1.91371485,3270.5,3270.0,0.676471]
[1722371284170,0.66914071,3270.4,3269.8,5.4861]
[1722371284470,2.55327598,3270.3,3269.8,5.4861]
[1722371284774,1.91371485,3270.0,3269.3,2.3546]
[1722371284930,1.91371485,3270.0,3269.4,1.22476]
[1722371285133,1.91371485,3270.1,3269.4,1.22476]
[1722371285332,3.0574,3270.8,3269.4,1.22476]
[1722371285333,1.91371485,3270.2,3269.4,1.22476]
[1722371285548,5.69473828,3270.8,3269.4,1.22476]
[1722371285549,1.91371485,3270.0,3269.4,1.22476]
[1722371285857,1.91371485,3270.1,3269.5,0.357936]
[1722371286138,2.55200734,3270.0,3269.5,0.357936]
[1722371286342,2.55200734,3270.0,3269.4,1.22476]
[1722371286343,1.91252325,3270.0,3269.4,1.22476]
[1722371286518,1.91252325,3270.1,3269.4,4.22476]
[1722371286945,0.63939169,3270.0,3269.4,4.22476]
[1722371287141,1.91252325,3270.1,3269.5,0.657936]
[1722371287522,2.23127713,3270.5,3269.5,0.657936]
[1722371287523,1.91252325,3270.2,3269.5,0.657936]
[1722371287856,1.91252325,3270.0,3269.5,0.657936]
[1722371288326,1.91252325,3270.1,3269.5,0.657936]
[1722371288730,1.91252325,3270.2,3269.5,0.657936]
[1722371288953,1.91252325,3270.2,3269.6,0.4882696]
[1722371289257,6.0573,3270.9,3269.6,0.4882696]
[1722371289465,1.9121141,3270.0,3269.4,4.22476]
[1722371289655,1.9121141,3270.1,3269.4,4.22476]
[1722371290470,1.9121141,3270.2,3269.5,0.06116214]
[1722371290621,1.9121141,3270.3,3269.5,0.06116214]
[1722371290816,0.02941766,3270.2,3269.6,0.42859221]
[1722371291039,1.9121141,3270.4,3269.6,0.42859221]
[1722371291241,0.02947347,3270.3,3269.6,0.42859221]
[1722371291441,1.94158757,3270.3,3269.7,3.04901288]
[1722371291635,1.9121141,3270.4,3269.7,3.04901288]
[1722371292041,2.07409992,3270.7,3269.6,0.42859221]
[1722371292375,0.6687204,3270.6,3269.6,0.42859221]
[1722371292579,0.63907952,3270.5,3269.6,0.42859221]
[1722371292759,0.63907952,3270.5,3269.5,7.3]
[1722371293097,0.02965937,3270.4,3269.5,7.3]
[1722371293241,0.66895531,3270.4,3269.5,7.3]
[1722371293440,0.63929594,3270.3,3269.5,7.3]
[1722371293681,0.63929594,3270.2,3269.5,7.3]
[1722371293840,0.02947695,3270.2,3269.5,7.3]
[1722371294037,5.69250225,3270.8,3269.5,8.51285396]
[1722371294242,0.02942114,3270.1,3269.6,0.06116326]
[1722371294488,3.31935872,3270.9,3269.6,2.2688]
[1722371294724,0.63923453,3270.8,3269.6,2.2688]
[1722371294891,0.63923453,3270.7,3269.7,1.0781654]
[1722371295388,0.02962619,3270.6,3269.7,1.0781654]
[1722371295561,0.02962619,3270.6,3269.8,0.06115689]
[1722371296092,0.4521957,3271.1,3269.8,0.06115689]
[1722371296305,0.6392568,3271.0,3269.8,0.06115689]
[1722371296476,0.6392568,3270.9,3269.9,0.41393223]
[1722371296784,0.02973778,3270.8,3269.9,0.41393223]
[1722371296948,0.6392568,3270.7,3269.9,0.41393223]
[1722371297372,0.02962619,3270.6,3269.9,0.41393223]
[1722371297575,2.22806394,3271.0,3269.9,0.41393223]
[1722371297749,0.63936925,3270.9,3269.9,0.41393223]
[1722371297962,0.63936925,3270.8,3269.7,4.0781654]
[1722371298272,0.02995831,3270.7,3269.7,4.0781654]
[1722371298493,0.63926938,3270.6,3269.7,4.0781654]
[1722371298648,0.63926938,3270.5,3269.7,4.0781654]
[1722371298888,0.02979094,3270.4,3269.7,4.0781654]
[1722371299060,0.02979094,3270.4,3269.8,0.63469654]
[1722371299386,5.28536139,3270.9,3269.8,0.63469654]
[1722371299591,5.28536139,3270.9,3269.6,2.2688]
[1722371299592,0.02973514,3270.3,3269.6,2.2688]
[1722371299749,2.22803139,3270.6,3269.6,2.2688]
[1722371299945,0.63911258,3270.5,3269.6,2.2688]
[1722371300162,0.63911258,3270.4,3269.6,2.2688]
[1722371300340,0.02974993,3270.5,3269.6,2.2688]
[1722371300542,2.22756191,3270.7,3269.6,2.2688]
[1722371300543,0.02966765,3270.3,3269.6,2.2688]
[1722371300744,0.02972345,3270.4,3269.6,2.2688]
[1722371301050,0.66878484,3270.3,3269.5,7.3]
[1722371301275,0.63911719,3270.2,3269.5,7.3]
[1722371301481,0.02955604,3270.1,3269.5,8.27797]
[1722371301865,2.22756191,3270.4,3269.5,8.27797]
[1722371302061,0.66873053,3270.3,3269.5,8.27797]
[1722371302278,0.63906288,3270.2,3269.5,8.27797]
[1722371302482,0.02951456,3270.1,3269.5,8.27797]
[1722371302684,0.63906288,3270.0,3269.3,2.4797]
[1722371303009,0.02940293,3269.9,3269.3,2.4797]
[1722371303211,0.63897409,3269.8,3268.5,7.3]
[1722371303416,0.63890309,3269.7,3268.6,3.2097]
[1722371303712,0.63898954,3269.6,3268.6,3.2097]
[1722371303923,0.02929129,3269.7,3268.6,3.2097]
[1722371304067,0.02917963,3269.5,3268.6,3.2097]
[1722371304269,0.63879441,3269.4,3268.6,2.4797]
[1722371304470,0.66773777,3269.3,3268.6,2.4797]
[1722371304668,0.63849455,3269.2,3268.6,2.4797]
[1722371304909,0.66735388,3269.1,3268.6,2.4797]
[1722371305229,0.02885933,3269.1,3268.6,2.4797]
[1722371305575,0.6382731,3269.0,3268.6,2.4797]
[1722371305776,0.02885933,3269.1,3268.6,2.4797]
[1722371305982,2.22827715,3269.5,3268.6,2.4797]
[1722371306222,0.66752872,3269.4,3268.6,2.4797]
[1722371306379,0.63839125,3269.3,3268.6,2.4797]
[1722371306574,0.63839125,3269.2,3268.6,2.4797]
[1722371306780,0.63839125,3269.1,3268.6,2.4797]
[1722371307031,0.66730536,3269.0,3268.6,2.4797]
[1722371307174,0.63839125,3268.9,3268.6,2.4797]
[1722371307379,2.22827715,3269.3,3268.0,2.3094]
[1722371307380,0.0288024,3268.8,3268.0,2.3094]
[1722371307691,2.22827715,3269.4,3268.1,0.53094]
[1722371307892,3.05862,3269.5,3268.1,0.53094]
[1722371307893,2.86645422,3269.3,3268.1,3.53094]
[1722371308097,0.63817707,3269.2,3268.1,3.53094]
[1722371308478,0.02896995,3269.1,3268.1,3.53094]
[1722371308683,0.63817707,3269.0,3268.2,0.584034]
[1722371308908,0.02885825,3268.9,3268.2,0.584034]
[1722371309275,2.22895163,3269.2,3268.2,0.584034]
[1722371309479,0.66947076,3269.1,3268.2,0.584034]
[1722371309705,0.63827235,3269.0,3268.2,0.584034]
[1722371310185,0.03107812,3268.9,3268.1,3.0]
[1722371310494,0.63827235,3268.8,3268.0,2.3094]
[1722371310695,0.63827235,3268.7,3268.0,2.3094]
[1722371310898,9.61895163,3269.2,3268.0,2.3094]
[1722371310899,0.63827235,3268.6,3268.0,2.3094]
[1722371311109,9.61895163,3269.2,3268.0,2.3094]
[1722371311322,0.63827623,3269.1,3268.0,2.3094]
[1722371311611,0.63827623,3269.0,3268.0,2.3094]
[1722371311822,0.63827623,3268.9,3268.0,2.3094]
[1722371312021,0.63827623,3268.8,3268.0,2.3094]
[1722371312327,9.61895163,3269.2,3268.0,2.54034]
[1722371312328,0.63827623,3268.7,3268.0,2.54034]
[1722371312530,0.63812117,3268.6,3268.0,2.54034]
[1722371312750,9.6185168,3269.2,3268.0,2.54034]
[1722371313029,2.86665611,3269.1,3268.0,2.3094]
[1722371313226,0.63813931,3269.0,3268.0,2.3094]
[1722371313559,12.6773668,3269.2,3268.0,2.3094]
[1722371313560,0.63813931,3268.9,3268.0,2.3094]
[1722371313688,0.63813931,3268.8,3268.0,2.3094]
[1722371313890,0.63813931,3268.7,3268.0,2.3094]
[1722371314233,0.63813931,3268.6,3268.0,2.54034]
[1722371314423,12.6774268,3269.2,3268.0,2.54034]
[1722371314631,0.63823492,3269.1,3268.0,2.3094]
[1722371314838,0.63823492,3269.0,3268.0,2.3094]
[1722371315038,0.63823492,3268.9,3268.0,2.3094]
[1722371315211,0.63823492,3268.8,3268.0,2.3094]
[1722371315402,0.63823492,3268.7,3268.0,2.3094]
[1722371315597,0.63823492,3268.6,3268.0,2.3094]
[1722371315801,3.0,3269.1,3268.0,2.3094]
[1722371315802,6.05895,3269.1,3268.0,2.3094]
[1722371316002,0.63810043,3269.0,3268.0,2.3094]
[1722371316234,0.63810043,3268.9,3268.0,2.3094]
[1722371316430,0.63810043,3268.8,3268.0,2.3094]
[1722371316618,0.63810043,3268.7,3268.0,2.3094]
[1722371316826,0.63810043,3268.6,3268.0,2.3094]
[1722371317028,0.63810043,3268.5,3268.0,2.3094]
[1722371317262,3.05915,3268.9,3268.0,2.3094]
[1722371317468,0.63823438,3268.8,3268.0,2.3094]
[1722371317763,0.63823438,3268.7,3268.0,2.3094]
[1722371317931,5.28723735,3269.0,3268.0,2.3094]
[1722371317932,0.63823438,3268.6,3268.0,2.3094]
[1722371318138,0.63823438,3268.5,3268.0,2.3094]
[1722371318353,5.28723735,3269.0,3268.0,2.3094]
[1722371318522,0.638181,3268.9,3268.0,2.3094]
[1722371318723,0.638181,3268.8,3268.0,2.3094]
[1722371319025,0.638181,3268.7,3268.0,2.3094]
[1722371319222,0.638181,3268.6,3268.0,2.3094]
[1722371319424,0.638181,3268.5,3268.0,2.3094]
[1722371319724,3.05905,3269.0,3268.0,2.3094]
[1722371319919,3.0594,3268.7,3267.5,9.2831]
[1722371320125,3.6977389,3268.6,3267.5,2.4831]
[1722371320320,0.6383189,3268.5,3267.5,2.4831]
[1722371320557,0.6383189,3268.4,3267.5,2.4831]
[1722371320761,0.6383189,3268.3,3267.5,2.4831]
[1722371320931,0.6383189,3268.2,3267.5,2.4831]
[1722371321132,3.05933,3268.7,3267.5,2.4831]
[1722371321350,0.6381584,3268.6,3267.5,2.4831]
[1722371321668,0.6381584,3268.5,3267.5,2.4831]
[1722371321821,0.6381584,3268.4,3267.5,2.4831]
[1722371322026,0.6381584,3268.3,3267.5,2.4831]
[1722371322220,0.6381584,3268.2,3267.5,2.4831]
[1722371322565,3.05933,3268.7,3267.5,2.4831]
[1722371322773,0.63791261,3268.6,3267.5,2.4831]
[1722371322943,0.63791261,3268.5,3267.5,2.4831]
[1722371323573,3.05969,3268.3,3267.5,2.4831]
[1722371323856,3.05969,3268.3,3266.6,6.8]
[1722371323857,0.63791261,3268.2,3266.7,2.2524]
[1722371324060,14.14759261,3268.2,3266.7,3.15764]
[1722371324243,0.63791261,3268.1,3266.7,3.15764]
[1722371324724,6.69781261,3268.1,3266.7,3.15764]
[1722371324961,0.63791261,3268.0,3266.7,3.15764]
[1722371325198,0.63791261,3268.0,3266.8,0.995764]
[1722371325417,0.63791261,3268.0,3266.9,2.2524]
[1722371325709,0.63791261,3268.0,3267.1,2.2524]
[1722371325891,7.39,3268.2,3267.1,2.2524]
[1722371326894,7.39,3268.2,3267.3,2.3699]
[1722371327081,7.39,3268.2,3267.4,0.24311117]
[1722371327282,3.0,3268.5,3267.4,0.24311117]
[1722371327495,0.63817381,3268.4,3267.4,0.24311117]
[1722371327717,3.0,3268.5,3267.5,2.3475]
[1722371327919,0.63827956,3268.4,3267.5,2.3475]
[1722371328067,3.0,3268.5,3267.5,2.3475]
[1722371329105,7.39,3268.6,3267.6,0.06120452]
[1722371329307,7.39,3268.6,3267.5,2.60656112]
[1722371330566,0.63869665,3268.5,3267.5,2.60656112]
[1722371330820,7.39,3268.6,3267.5,2.60656112]
[1722371331013,7.39,3268.6,3267.5,2.3475]
[1722371331476,0.63871226,3268.5,3267.5,2.3475]
[1722371331670,0.63871226,3268.4,3267.5,2.3475]
[1722371332012,0.63871226,3268.3,3267.5,2.3475]
[1722371332203,7.39,3268.6,3267.5,2.3475]
[1722371332422,0.63870569,3268.5,3267.5,2.3475]
[1722371332632,0.63870569,3268.4,3267.5,2.3475]
[1722371332812,0.63870569,3268.3,3267.5,2.3475]
[1722371333009,7.39,3268.6,3267.5,2.3475]
[1722371333231,0.63857155,3268.5,3267.5,2.3475]
[1722371333537,0.63857155,3268.4,3267.5,2.3475]
[1722371333742,0.63860148,3268.3,3267.5,2.3475]
[1722371334044,7.39,3268.6,3267.5,2.3475]
[1722371334336,0.6385758,3268.5,3267.5,2.3475]
[1722371334537,0.6385758,3268.4,3267.5,2.3475]
[1722371334744,0.63864686,3268.3,3267.5,2.3475]
[1722371334914,7.39,3268.6,3267.5,2.3475]
[1722371335103,0.63868836,3268.5,3267.5,2.3475]
[1722371335451,0.63868836,3268.4,3267.5,2.3475]
[1722371335648,7.39,3268.6,3267.5,2.3475]
[1722371335794,0.63878081,3268.5,3267.5,2.3475]
[1722371336108,7.39,3268.6,3267.5,2.3475]
[1722371336314,0.63880298,3268.5,3267.5,2.3475]
[1722371336514,7.39,3268.6,3267.5,2.58225]
[1722371336716,0.63881155,3268.5,3267.5,2.3475]
[1722371336914,0.63883207,3268.4,3267.5,2.3475]
[1722371337124,7.39,3268.6,3267.5,2.3475]
[1722371337328,0.63883868,3268.5,3267.5,2.3475]
[1722371337645,0.63883868,3268.4,3267.5,2.3475]
[1722371337939,0.63893579,3268.3,3267.5,2.3475]
[1722371338145,7.39,3268.6,3267.5,2.3475]
[1722371338345,0.63892763,3268.5,3267.5,2.3475]
[1722371338550,0.63892763,3268.4,3267.5,2.3475]
[1722371338716,7.39,3268.6,3267.5,2.3475]
[1722371338916,0.63889109,3268.5,3267.5,2.3475]
[1722371339120,0.63889109,3268.4,3267.5,2.3475]
[1722371339335,0.63889109,3268.3,3267.5,2.3475]
[1722371339643,3.0,3268.8,3267.5,2.3475]
[1722371339844,0.63876098,3268.7,3267.5,2.3475]
[1722371340146,0.63876098,3268.6,3267.5,2.3475]
[1722371340316,0.63876098,3268.5,3267.5,2.3475]
[1722371340517,0.63876098,3268.4,3267.5,2.3475]
[1722371340745,3.0,3268.8,3267.5,2.3475]
[1722371340746,0.63876098,3268.3,3267.5,2.3475]
[1722371340944,0.63876098,3268.2,3267.5,2.3475]
[1722371341116,0.63876098,3268.1,3267.5,2.3475]
[1722371341317,0.63876098,3268.0,3267.5,2.3475]
[1722371341521,2.22821657,3268.6,3267.5,2.3475]
[1722371341721,0.63857985,3268.5,3267.5,2.3475]
[1722371342050,2.22821657,3268.6,3267.5,2.3475]
[1722371342051,0.63857985,3268.4,3267.5,2.3475]
[1722371342222,2.22821657,3268.6,3267.5,2.3475]
[1722371342223,0.63857985,3268.3,3267.5,2.3475]
[1722371342406,0.63857985,3268.2,3267.5,2.3475]
[1722371342605,0.63857985,3268.1,3267.5,2.3475]
[1722371342807,2.22821657,3268.5,3267.5,2.3475]
[1722371342808,0.63857985,3268.0,3267.5,2.3475]
[1722371343007,5.28781657,3268.4,3267.5,2.3475]
[1722371343507,2.22821657,3268.1,3267.0,2.3252]
[1722371343829,3.69823483,3268.3,3267.0,2.3252]
[1722371343830,0.63848483,3268.0,3267.0,2.3252]
[1722371344032,0.63848483,3267.9,3267.0,2.3252]
[1722371344247,0.63848483,3267.8,3267.0,2.3252]
[1722371344550,0.63848483,3267.7,3267.0,2.3252]
[1722371344707,0.63848483,3267.6,3267.0,2.3252]
[1722371344909,2.23067904,3268.0,3267.0,2.3252]
[1722371345134,0.63864673,3267.9,3267.0,2.3252]
[1722371345336,0.63864673,3267.8,3267.1,2.38641695]
[1722371345605,3.0,3268.3,3267.1,2.38641695]
[1722371345606,0.63864673,3267.7,3267.1,2.38641695]
[1722371345805,3.0,3268.3,3267.1,2.38641695]
[1722371345806,2.23067904,3268.2,3267.1,2.38641695]
[1722371346138,0.63862364,3268.1,3267.1,2.3252]
[1722371346459,2.23067904,3268.2,3266.6,3.0]
[1722371346460,0.63862364,3268.0,3267.0,2.3252]
[1722371346747,0.63862364,3267.9,3267.0,2.81712]
[1722371346911,0.63862364,3267.8,3267.0,2.3252]
[1722371347110,0.63862364,3267.7,3267.0,2.3252]
[1722371347344,2.23455178,3268.2,3267.0,2.3252]
[1722371347559,2.87321944,3268.1,3267.0,2.81712]
[1722371347757,0.63866766,3268.0,3267.0,2.3252]
[1722371347958,0.63866766,3267.9,3267.0,2.3252]
[1722371348120,0.63866766,3267.8,3267.0,2.3252]
[1722371348459,7.39,3268.6,3266.9,9.394]
[1722371348460,0.63866766,3267.7,3267.2,2.3252]
[1722371348763,2.23455178,3268.2,3267.4,2.3252]
[1722371348913,0.63872795,3268.1,3267.4,2.3252]
[1722371349114,0.63872795,3268.0,3267.4,2.3252]
[1722371349359,0.63872795,3267.9,3267.4,2.3252]
[1722371349531,0.63872795,3267.8,3267.4,2.3252]
[1722371349941,0.63872795,3267.7,3267.4,2.3252]
[1722371350151,0.63872795,3267.6,3267.4,2.3252]
[1722371350319,0.63872795,3267.5,3267.4,2.3252]
[1722371351238,0.63870178,3267.5,3267.4,2.3252]
[1722371351417,0.63858174,3267.5,3267.4,2.3252]
[1722371351617,0.6385407,3267.5,3267.4,2.3252]
[1722371353263,2.23850268,3268.1,3267.4,2.55772]
[1722371353418,0.63892597,3268.0,3267.8,2.2504]
[1722371353617,0.63892597,3267.9,3267.8,2.31159572]
[1722371353917,0.63892597,3267.9,3267.8,2.2504]
[1722371354113,0.63892597,3267.9,3267.8,2.74095973]
[1722371354661,0.63892597,3267.9,3267.8,2.802156]
[1722371355263,0.63892597,3267.9,3267.8,3.551756]
[1722371355462,2.23981113,3268.4,3267.9,2.2504]
[1722371355702,0.63862677,3268.3,3268.1,2.2796]
[1722371355858,0.63862677,3268.2,3268.1,2.2796]
[1722371356267,10.39,3269.6,3268.1,2.2796]
[1722371356268,2.8784379,3268.4,3268.1,2.2796]
[1722371356454,2.23981113,3268.2,3268.1,2.2796]
[1722371356795,0.63862677,3268.2,3268.1,2.2796]
[1722371357089,2.24005691,3268.2,3268.1,2.2796]
[1722371357303,2.8786038,3268.2,3268.1,2.2796]
[1722371357589,0.63862677,3268.2,3268.1,2.50756]
[1722371357968,0.63881915,3268.2,3268.1,5.14566]
[1722371358174,1.322538,3269.5,3268.1,5.14566]
[1722371358175,2.23997703,3268.7,3268.2,2.3237]
[1722371358509,0.63891996,3268.6,3268.4,2.3237]
[1722371358670,2.23997703,3268.7,3268.5,0.23237]
[1722371358996,7.39,3269.6,3268.5,0.23237]
[1722371358997,0.63888155,3268.6,3268.5,0.23237]
[1722371359155,0.63888155,3268.6,3268.4,2.3237]
[1722371359355,0.63888155,3268.5,3268.4,2.3237]
[1722371360406,2.87885858,3268.5,3268.4,2.3237]
[1722371360571,0.63888155,3268.5,3268.4,2.3237]
[1722371363265,2.87893228,3268.5,3268.4,2.3237]
[1722371363497,0.63914294,3268.5,3268.4,2.3237]
[1722371364699,0.63914294,3268.5,3268.4,2.8215888]
[1722371365207,2.24005073,3269.0,3268.4,2.8215888]
[1722371365370,0.63922452,3268.9,3268.5,0.0611827]
[1722371365576,0.63922452,3268.8,3268.6,2.4714]
[1722371365757,0.63922452,3268.7,3268.6,2.4714]
[1722371366160,0.63922452,3268.9,3268.6,2.4714]
[1722371366404,0.63922452,3268.8,3268.6,2.4714]
[1722371366571,0.63922452,3268.7,3268.6,2.4714]
[1722371366961,0.63922452,3269.0,3268.6,2.4714]
[1722371368710,2.87818259,3269.0,3268.6,2.4714]
[1722371369001,2.87818259,3268.9,3268.6,2.4714]
[1722371369208,0.63922452,3268.8,3268.6,2.4714]
[1722371369392,0.63922452,3268.7,3268.6,2.4714]
[1722371369715,0.63922452,3268.9,3268.6,2.4714]
[1722371370033,0.63922452,3268.8,3268.6,2.4714]
[1722371370208,0.63922452,3268.7,3268.6,2.4714]
[1722371370504,2.2377764,3269.1,3268.6,2.4714]
[1722371370661,0.63943124,3269.0,3268.6,2.4714]
[1722371370862,0.63943124,3268.9,3268.6,2.4714]
[1722371371111,0.63943124,3268.8,3268.6,2.4714]
[1722371371266,2.2377764,3269.2,3268.6,2.4714]
[1722371371604,0.63947812,3269.1,3268.6,2.4714]
[1722371371762,0.63947812,3269.0,3268.6,2.4714]
[1722371372162,0.63947812,3268.9,3268.6,2.4714]
[1722371372478,0.63947812,3268.8,3268.6,2.4714]
[1722371372693,2.2377764,3269.2,3268.6,2.4714]
[1722371372898,0.6396189,3269.1,3268.6,2.4714]
[1722371373215,0.6396189,3269.0,3268.6,2.4714]
[1722371373518,0.6396189,3268.9,3268.6,2.4714]
[1722371373714,0.6396189,3268.8,3268.6,2.4714]
[1722371373957,2.2377626,3269.1,3268.6,2.4714]
[1722371374111,0.63968117,3269.0,3268.6,2.4714]
[1722371374311,0.63968117,3268.9,3268.6,2.4714]
[1722371374555,0.63968117,3268.8,3268.6,2.4714]
[1722371374758,2.2377626,3269.2,3268.6,2.4714]
[1722371374912,2.87738306,3269.1,3268.6,2.4714]
[1722371375125,0.63962046,3269.0,3268.6,2.4714]
[1722371375370,0.63962046,3268.9,3268.6,2.4714]
[1722371375662,0.63962046,3268.8,3268.6,2.4714]
[1722371375869,2.2377626,3269.1,3268.6,2.4714]
[1722371376176,0.63961358,3269.0,3268.6,2.4714]
[1722371376319,0.63961358,3268.9,3268.6,2.4714]
[1722371376525,0.63961358,3268.8,3268.6,2.4714]
[1722371376754,2.2377626,3269.1,3268.6,2.4714]
[1722371376954,0.63967223,3269.0,3268.6,2.4714]
[1722371377155,0.63967223,3268.9,3268.6,2.4714]
[1722371377363,0.63967223,3268.8,3268.2,2.4254]
[1722371377563,2.23747332,3268.6,3268.1,6.8]
[1722371377744,0.63967223,3268.5,3268.1,6.8]
[1722371378041,6.1775894,3269.3,3268.1,6.8]
[1722371378042,0.63967223,3268.4,3268.1,6.8]
[1722371378247,0.63967223,3268.3,3268.1,6.8]
[1722371378484,0.63967223,3268.2,3268.1,6.8]
[1722371379136,2.23747332,3268.6,3268.1,6.8]
[1722371379332,0.63941633,3268.5,3268.1,6.8]
[1722371379642,0.63941633,3268.4,3268.1,6.8]
[1722371379867,0.63941633,3268.3,3268.1,6.8]
[1722371380168,2.23747332,3268.6,3268.1,6.8]
[1722371380389,0.63939001,3268.5,3268.1,6.8]
[1722371380675,0.63939001,3268.4,3268.1,6.8]
[1722371380842,0.63939001,3268.3,3267.9,2.4254]
[1722371381044,2.23733249,3268.6,3267.9,2.4254]
[1722371381231,2.8767024,3268.5,3267.9,2.66794]
[1722371381438,0.63936991,3268.4,3267.9,2.4254]
[1722371381756,0.63936991,3268.3,3267.9,2.4254]
[1722371381958,0.63938111,3268.2,3267.9,2.4254]
[1722371382268,0.63934907,3268.1,3267.9,2.4254]
[1722371382475,2.23750031,3268.5,3267.9,2.4254]
[1722371382681,0.63936776,3268.4,3267.9,2.4254]
[1722371382882,0.63936776,3268.3,3267.9,2.4254]
[1722371383037,0.63936776,3268.2,3267.9,2.4254]
[1722371383238,2.23750031,3268.6,3267.9,2.4254]
[1722371383448,2.87686575,3268.5,3267.9,2.4254]
[1722371383645,0.63936544,3268.4,3267.9,2.4254]
[1722371383846,0.63936544,3268.3,3267.9,2.4254]
[1722371384050,2.23771752,3268.7,3267.9,2.4254]
[1722371384359,2.23771752,3268.5,3267.9,2.4254]
[1722371384530,2.87708465,3268.4,3267.9,2.4254]
[1722371384736,0.63936713,3268.3,3267.9,2.4254]
[1722371384935,0.63936713,3268.2,3267.9,2.4254]
[1722371385164,0.63936713,3268.1,3267.9,2.4254]
[1722371385387,2.23771752,3268.5,3267.9,2.4254]
[1722371385564,0.63932925,3268.4,3267.9,2.4254]
[1722371385880,0.63932925,3268.3,3267.9,2.66794]
[1722371386076,0.63932925,3268.2,3267.9,2.4254]
[1722371386288,0.63932925,3268.1,3267.9,2.4254]
[1722371386477,2.23771752,3268.5,3267.9,2.4254]
[1722371386777,3.1188294,3269.1,3267.9,2.4254]
[1722371386778,2.87704596,3268.4,3267.9,2.4254]
[1722371386987,0.63932844,3268.3,3267.9,2.4254]
[1722371387311,0.63932844,3268.2,3267.5,5.3028]
[1722371387611,0.63932844,3268.1,3267.5,5.3028]
[1722371387915,0.63932844,3268.0,3267.6,1.46968]
[1722371388071,2.2379879,3268.4,3267.6,1.46968]
[1722371388427,0.63933847,3268.3,3267.6,1.46968]
[1722371388600,0.63933847,3268.2,3267.7,0.677248]
[1722371388852,0.63933847,3268.1,3267.7,0.677248]
[1722371389108,2.2379879,3268.6,3267.7,0.677248]
[1722371389305,0.63929648,3268.5,3267.9,2.3832]
[1722371389609,2.87728438,3268.4,3267.9,2.3832]
[1722371389788,0.63929648,3268.3,3268.0,0.25978928]
[1722371389996,0.63929648,3268.2,3268.0,0.25978928]
[1722371390203,0.63929648,3268.1,3268.0,0.25978928]
[1722371390406,0.63929648,3268.1,3267.9,2.3832]
[1722371390614,0.63925243,3268.0,3267.9,2.3832]
[1722371391375,0.63925243,3268.0,3267.5,3.0]
[1722371391376,0.63925243,3268.0,3267.5,5.4011]
[1722371391670,0.63925243,3267.9,3267.5,5.4011]
[1722371391977,0.63925243,3267.8,3267.5,5.4011]
[1722371392175,2.23931031,3268.1,3267.5,5.4011]
[1722371392369,0.63930731,3268.0,3267.5,5.4011]
[1722371394110,2.8803073,3268.0,3267.5,5.4011]
[1722371394326,0.63930731,3267.9,3267.5,5.4011]
[1722371394501,0.63930731,3267.8,3267.5,5.4011]
[1722371394810,0.63930731,3267.7,3267.5,5.4011]
[1722371395017,0.63930731,3267.6,3267.5,5.4011]
[1722371395315,0.63927179,3267.6,3267.5,5.4011]
[1722371395501,2.24099999,3268.1,3267.5,5.4011]
[1722371395706,0.63929374,3268.0,3267.6,0.06120049]
[1722371396017,0.63929374,3267.9,3267.6,0.06120049]
[1722371396190,2.24099999,3268.3,3267.7,2.92863005]
[1722371396374,0.639351,3268.2,3267.8,0.36017906]
[1722371396574,0.639351,3268.1,3267.8,0.36017906]